[Event "Queens Festival Europe 2022"]
[Site "Tornelo"]
[Date "2022.06.19"]
[Round "8.3"]
[White "Sikorova, Olga"]
[Black "Kordzadze, Nino"]
[Result "1-0"]
[ECO "A10"]
[WhiteElo "2173"]
[BlackElo "2043"]
[Annotator "TA"]
[PlyCount "67"]
[EventDate "2022.06.19"]
[EventType "swiss"]
[EventCountry "NET"]
[SourceTitle "playchess.com"]
[Source "ChessBase"]
[SourceQuality "1"]
[TimeControl "180+2"]

{[%evp 9,66,29,35,20,26,22,49,25,31,0,25,22,11,22,10,18,21,-7,0,-12,33,26,57,-30,-31,-37,57,0,0,0,0,2,134,140,118,90,233,-278,-256,-368,-392,-563,-445,-665,-100,-379,-370,-570,-267,-266,29989,29990,29991,1237,29999,29992,29992,29990,29999]} 1. c4 {[%emt 0:00:02]} e6 {[%emt 0:00:05]} 2. g3 {[%emt 0:00:05]} f5 {[%emt 0:00:01]} 3. Bg2 {[%emt 0:00:01]} Nf6 {[%emt 0:00:01]} 4. Nc3 {[%emt 0:00:01]} Be7 {[%emt 0:00:02]} 5. d3 {[%emt 0:00:01]} d6 {[%emt 0:00:02]} 6. e4 {[%emt 0:00:02] A10: English Opening: Unusual Replies for Black.} fxe4 {[%emt 0:00:42]} 7. dxe4 {[%emt 0:00:02]} O-O {[%emt 0:00:02]} 8. Nge2 {[%emt 0:00:01] White is slightly better.} e5 {[%emt 0:00:14]} 9. h3 {[%emt 0:00:03] [#]} Be6 $146 {[%emt 0:00:13]} ({Predecessor:} 9... c6 10. O-O Be6 11. b3 Nbd7 12. Be3 Ne8 13. Qd2 Nc7 14. a4 Nf6 15. Qb2 Qe8 {1-0 (60) Disu,K (1881)-Davison,C (1931) England 2014}) 10. Nd5 {[%emt 0:00:05]} c6 {[%emt 0:00:04]} 11. Nxe7+ {[%emt 0:00:06]} Qxe7 {[%emt 0:00:02]} 12. b3 {[%emt 0:00:00]} Nbd7 {[%emt 0:00:11][%cal Bb8d7,Bd7c5,Bc5b7][%mdl 32]} 13. Ba3 {[%emt 0:00:05]} Nc5 {[%emt 0:00:24]} 14. Qc2 {[%emt 0:00:02]} b6 {[%emt 0:00:36]} 15. O-O {[%emt 0:00:07]} Qd7 {[%emt 0:00:06]} 16. b4 {[%emt 0:00:07]} (16. g4 $14) 16... Nb7 $11 {[%emt 0:00:04]} 17. Kh2 {[%emt 0:00:02]} d5 {[%emt 0:00:08]} (17... a5 $15) 18. cxd5 {[%emt 0:00:34]} (18. f4 $14 d4 19. Qd3 (19. fxe5 $2 d3 $17)) 18... cxd5 {[%emt 0:00:03]} 19. exd5 {[%emt 0:00:01]} Bxd5 {[%emt 0:00:18]} 20. Rad1 {[%emt 0:00:04] Nc3 is the strong threat.} Qe6 {[%emt 0:00:05] [#]} (20... Qf7 $11 {keeps the balance.}) 21. Rxd5 $1 $16 {[%emt 0:00:10][%mdl 512]} Nxd5 {[%emt 0:00:02]} 22. Qb3 {[%emt 0:00:02]} Rad8 {[%emt 0:00:02] [#]} (22... e4 $16) 23. Rd1 $4 {[%emt 0:00:08][%mdl 8192]} (23. Nc3 $1 $18) 23... Rxf2 $19 {[%emt 0:00:02]} 24. Nc3 {[%emt 0:00:13]} (24. Kg1 $142 Rxg2+ 25. Kxg2) 24... Nc7 {[%emt 0:00:08]} 25. Qa4 {[%emt 0:00:28]} (25. Rxd8+ $142 Nxd8 26. Qd1) 25... Rxd1 {[%emt 0:00:04]} 26. Qxd1 {[%emt 0:00:01]} (26. Nxd1 $142 Rd2 27. Ne3) 26... Qf7 $2 {[%emt 0:00:05]} (26... Qc6 $19 {[%csl Gf2][%cal Rc6g2] is more deadly.} 27. Qg1 Rd2) 27. Ne4 $2 {[%emt 0:00:04][%mdl 8192]} (27. Kg1 $17 Rxg2+ 28. Kxg2) 27... Rxa2 {[%emt 0:00:02]} ({Wrong is} 27... Rxg2+ $2 28. Kxg2 Qxa2+ 29. Nf2 $19) 28. Bc1 {[%emt 0:00:04]} (28. Qc1 {was the only defense.} Nd6 29. Nxd6) 28... Nd5 {[%emt 0:00:02]} (28... Qc4 $142 29. Bd2 Qd3) 29. Ng5 {[%emt 0:00:03]} Qf2 {[%emt 0:00:01][%mdl 8192]} 30. Qxd5+ {[%emt 0:00:04]} Kh8 {[%emt 0:00:02]} 31. Qxb7 {[%emt 0:00:06]} (31. Nf7+ $142 Qxf7 32. Qxf7 h5 33. Qxa2 Nd6 34. Qe6 a6 35. Qxd6 Kg8 36. Bd5+ Kh7 37. Be4+ Kg8 38. Bg6 Kh8 39. Qf8#) 31... g6 {[%emt 0:00:04]} 32. Qb8+ {[%emt 0:00:09] White mates.} Kg7 {[%emt 0:00:01]} 33. Qxe5+ {[%emt 0:00:01]} Kh6 {[%emt 0:00:02]} 34. Nf7# {[%emt 0:00:03] Weighted Error Value: White=0.73/Black=1.18} 1-0

[Event "Queens Festival Europe 2022"]
[Site "Tornelo"]
[Date "2022.06.19"]
[Round "8.3"]
[White "Shuqja, Klean"]
[Black "Grigoryan, Meri"]
[Result "0-1"]
[ECO "C63"]
[WhiteElo "1839"]
[BlackElo "1993"]
[Annotator "NA RC"]
[PlyCount "58"]
[EventDate "2022.06.19"]
[EventType "swiss"]
[EventCountry "NET"]
[SourceTitle "playchess.com"]
[Source "ChessBase"]
[SourceQuality "1"]
[TimeControl "180+2"]

1. e4 {[%emt 0:00:02]} e5 {[%emt 0:00:04]} 2. Nf3 {[%emt 0:00:02]} Nc6 {[%emt 0:00:01]} 3. Bb5 {[%emt 0:00:01]} f5 {[%emt 0:00:02]} 4. d3 {[%emt 0:00:18]} fxe4 {[%emt 0:00:09]} 5. dxe4 {[%emt 0:00:01]} Nf6 {[%emt 0:00:01]} 6. Bg5 {[%emt 0:00:07]} d6 {[%emt 0:00:07]} 7. Nc3 {[%emt 0:00:09]} Be6 {[%emt 0:00:03]} 8. Nd5 {[%emt 0:00:04]} Be7 {[%emt 0:00:03]} 9. Nxe7 {[%emt 0:00:07]} Qxe7 {[%emt 0:00:02]} 10. O-O {[%emt 0:00:03]} a6 {[%emt 0:00:07]} 11. Ba4 {[%emt 0:00:12]} O-O {[%emt 0:00:03]} 12. c3 {[%emt 0:00:15]} Qf7 {[%emt 0:00:02]} 13. Bc2 {[%emt 0:00:17]} Qg6 {[%emt 0:00:10]} 14. Bxf6 {[%emt 0:00:31]} Rxf6 {[%emt 0:00:04]} 15. Bb3 {[%emt 0:00:04]} Raf8 {[%emt 0:00:15]} 16. Bxe6+ {[%emt 0:00:07]} Rxe6 {[%emt 0:00:00]} 17. Qd3 {[%emt 0:00:03]} Ref6 {[%emt 0:00:04]} 18. Ne1 {[%emt 0:00:07]} Nd8 {[%emt 0:00:22]} 19. f3 {[%emt 0:00:18]} Ne6 {[%emt 0:00:03]} 20. Qd5 {[%emt 0:00:05]} Kh8 {[%emt 0:00:08]} 21. Qxb7 {[%emt 0:00:17]} Nf4 {[%emt 0:00:32]} 22. Kh1 {[%emt 0:00:05]} Qh5 {[%emt 0:00:10]} 23. g3 {[%emt 0:00:11]} Nh3 {[%emt 0:00:18]} 24. Kg2 {[%emt 0:00:04]} Rh6 {[%emt 0:00:04]} 25. Rh1 {[%emt 0:00:07]} Ng5 {[%emt 0:00:03]} 26. Qa7 {[%emt 0:00:13]} Nxf3 {[%emt 0:00:08]} 27. Qe3 {[%emt 0:00:02]} Qh3+ {[%emt 0:00:13]} 28. Kf2 {[%emt 0:00:04]} Nd4+ {[%emt 0:00:06]} 29. Kg1 {[%emt 0:00:01]} Qf1# {[%emt 0:00:05]} 0-1

[Event "Queens Festival Europe 2022"]
[Site "Tornelo"]
[Date "2022.06.19"]
[Round "8.3"]
[White "Lampard, Alice"]
[Black "Posadas, Rayelynn"]
[Result "1-0"]
[ECO "A58"]
[WhiteElo "1756"]
[BlackElo "1648"]
[Annotator "NA RC"]
[PlyCount "67"]
[EventDate "2022.06.19"]
[EventType "swiss"]
[EventCountry "NET"]
[SourceTitle "playchess.com"]
[Source "ChessBase"]
[SourceQuality "1"]
[TimeControl "180+2"]

1. d4 {[%emt 0:00:02]} c5 {[%emt 0:00:05]} 2. d5 {[%emt 0:00:03]} Nf6 {[%emt 0:00:05]} 3. c4 {[%emt 0:00:02]} b5 {[%emt 0:00:04]} 4. cxb5 {[%emt 0:00:05]} a6 {[%emt 0:00:03]} 5. bxa6 {[%emt 0:00:01]} g6 {[%emt 0:00:03]} 6. Nc3 {[%emt 0:00:02]} Bg7 {[%emt 0:00:02]} 7. e4 {[%emt 0:00:02]} Qa5 {[%emt 0:00:05]} 8. Bd2 {[%emt 0:00:04]} Bxa6 {[%emt 0:00:02]} 9. Nf3 {[%emt 0:00:14]} O-O {[%emt 0:00:05]} 10. Be2 {[%emt 0:00:18]} Bxe2 {[%emt 0:00:19]} 11. Qxe2 {[%emt 0:00:04]} Na6 {[%emt 0:00:01]} 12. a3 {[%emt 0:00:09]} Rfb8 {[%emt 0:00:03]} 13. Rb1 {[%emt 0:00:10]} d6 {[%emt 0:00:17]} 14. O-O {[%emt 0:00:02]} Ng4 {[%emt 0:00:15]} 15. h3 {[%emt 0:00:07]} Ne5 {[%emt 0:00:02]} 16. Nxe5 {[%emt 0:00:03]} Bxe5 {[%emt 0:00:00]} 17. f4 {[%emt 0:00:10]} Bd4+ {[%emt 0:00:02]} 18. Kh1 {[%emt 0:00:01]} Qb6 {[%emt 0:00:11]} 19. f5 {[%emt 0:00:08]} Kg7 {[%emt 0:00:21]} 20. fxg6 {[%emt 0:00:21]} hxg6 {[%emt 0:00:04]} 21. Qf3 {[%emt 0:00:09]} Rf8 {[%emt 0:00:06]} 22. Qf4 {[%emt 0:00:01]} Nc7 {[%emt 0:00:34]} 23. Qh6+ {[%emt 0:00:13]} Kg8 {[%emt 0:00:02]} 24. h4 {[%emt 0:00:11]} Bg7 {[%emt 0:00:04]} 25. Qe3 {[%emt 0:00:04]} Nb5 {[%emt 0:00:25]} 26. g3 {[%emt 0:00:24]} Rfb8 {[%emt 0:00:30]} 27. Nxb5 {[%emt 0:00:02]} Qxb5 {[%emt 0:00:02]} 28. Bc3 {[%emt 0:00:09]} Qb3 {[%emt 0:00:01]} 29. Rbc1 {[%emt 0:00:09]} Ra4 {[%emt 0:00:01]} 30. Qf4 {[%emt 0:00:04]} Rf8 {[%emt 0:00:02]} 31. Bxg7 {[%emt 0:00:04]} Kxg7 {[%emt 0:00:02]} 32. h5 {[%emt 0:00:04]} Qxb2 {[%emt 0:00:03]} 33. Rf2 {[%emt 0:00:16]} Qf6 {[%emt 0:00:05]} 34. h6+ {[%emt 0:00:03]} 1-0

[Event "Queens Festival Europe 2022"]
[Site "Tornelo"]
[Date "2022.06.19"]
[Round "8.3"]
[White "Hariharan, Shambavi"]
[Black "Bakhshizada, Asnad"]
[Result "0-1"]
[ECO "D10"]
[WhiteElo "1517"]
[BlackElo "1052"]
[Annotator "NA RC"]
[PlyCount "92"]
[EventDate "2022.06.19"]
[EventType "swiss"]
[EventCountry "NET"]
[SourceTitle "playchess.com"]
[Source "ChessBase"]
[SourceQuality "1"]
[TimeControl "180+2"]

1. d4 {[%emt 0:00:02]} d5 {[%emt 0:00:05]} 2. Bf4 {[%emt 0:00:02]} Nf6 {[%emt 0:00:06]} 3. e3 {[%emt 0:00:01]} Bf5 {[%emt 0:00:03]} 4. c4 {[%emt 0:00:02]} e6 {[%emt 0:00:01]} 5. Nc3 {[%emt 0:00:02]} c6 {[%emt 0:00:03]} 6. Qb3 {[%emt 0:00:02]} Qc8 {[%emt 0:00:03]} 7. Nf3 {[%emt 0:00:02]} Nbd7 {[%emt 0:00:03]} 8. Rc1 {[%emt 0:00:05]} b6 {[%emt 0:00:07]} 9. cxd5 {[%emt 0:00:07]} exd5 {[%emt 0:00:05]} 10. Nb5 {[%emt 0:00:25]} Rb8 {[%emt 0:00:45]} 11. Bxb8 {[%emt 0:00:03]} Qxb8 {[%emt 0:00:02]} 12. Nc3 {[%emt 0:00:01]} Be7 {[%emt 0:00:06]} 13. Be2 {[%emt 0:00:01]} Ne4 {[%emt 0:00:02]} 14. Nxe4 {[%emt 0:00:05]} Bxe4 {[%emt 0:00:04]} 15. Qc3 {[%emt 0:00:03]} O-O {[%emt 0:00:12]} 16. O-O {[%emt 0:00:05]} c5 {[%emt 0:00:06]} 17. Nd2 {[%emt 0:00:16]} Bg6 {[%emt 0:00:04]} 18. Bf3 {[%emt 0:00:04]} Nf6 {[%emt 0:00:06]} 19. a3 {[%emt 0:00:09]} Bf5 {[%emt 0:00:03]} 20. Nb3 {[%emt 0:00:08]} c4 {[%emt 0:00:05]} 21. Nd2 {[%emt 0:00:03]} a5 {[%emt 0:00:04]} 22. a4 {[%emt 0:00:04]} Bb4 {[%emt 0:00:04]} 23. Qxb4 {[%emt 0:00:23]} axb4 {[%emt 0:00:03]} 24. h3 {[%emt 0:00:06]} Qa7 {[%emt 0:00:03]} 25. Ra1 {[%emt 0:00:08]} c3 {[%emt 0:00:06]} 26. bxc3 {[%emt 0:00:02]} bxc3 {[%emt 0:00:02]} 27. Nb3 {[%emt 0:00:01]} c2 {[%emt 0:00:04]} 28. Be2 {[%emt 0:00:08]} h6 {[%emt 0:00:06]} 29. Bb5 {[%emt 0:00:02]} Ne4 {[%emt 0:00:10]} 30. Rac1 {[%emt 0:00:05]} Nc3 {[%emt 0:00:05]} 31. Rfe1 {[%emt 0:00:05]} Na2 {[%emt 0:00:07]} 32. Ra1 {[%emt 0:00:06]} Nc3 {[%emt 0:00:07]} 33. Bc6 {[%emt 0:00:08]} Rd8 {[%emt 0:00:06]} 34. Bb5 {[%emt 0:00:10]} Rc8 {[%emt 0:00:12]} 35. f3 {[%emt 0:00:13]} Qe7 {[%emt 0:00:11]} 36. g4 {[%emt 0:00:05]} Bg6 {[%emt 0:00:04]} 37. h4 {[%emt 0:00:11]} Qxh4 {[%emt 0:00:06]} 38. Kg2 {[%emt 0:00:03]} Qe7 {[%emt 0:00:04]} 39. Kg3 {[%emt 0:00:07]} Qd6+ {[%emt 0:00:04]} 40. Kg2 {[%emt 0:00:01]} Qb4 {[%emt 0:00:03]} 41. Nd2 {[%emt 0:00:06]} Nxb5 {[%emt 0:00:02]} 42. axb5 {[%emt 0:00:10]} Qxd2+ {[%emt 0:00:04]} 43. Kg3 {[%emt 0:00:02]} c1=Q {[%emt 0:00:03]} 44. Raxc1 {[%emt 0:00:01]} Rxc1 {[%emt 0:00:02]} 45. Rxc1 {[%emt 0:00:02]} Qxc1 {[%emt 0:00:02]} 46. Kf4 {[%emt 0:00:01]} Qc7# {[%emt 0:00:04]} 0-1

[Event "Queens Festival Europe 2022"]
[Site "Tornelo"]
[Date "2022.06.19"]
[Round "8.4"]
[White "Tsakona, Maria"]
[Black "Head, Louise"]
[Result "0-1"]
[ECO "B13"]
[WhiteElo "2007"]
[BlackElo "2025"]
[Annotator "NA RC"]
[PlyCount "142"]
[EventDate "2022.06.19"]
[EventType "swiss"]
[EventCountry "NET"]
[SourceTitle "playchess.com"]
[Source "ChessBase"]
[SourceQuality "1"]
[TimeControl "180+2"]

1. e4 {[%emt 0:00:02]} c6 {[%emt 0:00:04]} 2. d4 {[%emt 0:00:02]} d5 {[%emt 0:00:02]} 3. exd5 {[%emt 0:00:00]} cxd5 {[%emt 0:00:02]} 4. Bd3 {[%emt 0:00:01]} Nc6 {[%emt 0:00:02]} 5. c3 {[%emt 0:00:00]} g6 {[%emt 0:00:01]} 6. Nf3 {[%emt 0:00:02]} Nh6 {[%emt 0:00:03]} 7. O-O {[%emt 0:00:02]} Bf5 {[%emt 0:00:01]} 8. Ne1 {[%emt 0:00:12]} Bxd3 {[%emt 0:00:03]} 9. Nxd3 {[%emt 0:00:00]} Bg7 {[%emt 0:00:01]} 10. Bf4 {[%emt 0:00:02]} O-O {[%emt 0:00:02]} 11. Nd2 {[%emt 0:00:01]} f6 {[%emt 0:00:03]} 12. Qe2 {[%emt 0:00:06]} Nf7 {[%emt 0:00:03]} 13. Bg3 {[%emt 0:00:27]} Re8 {[%emt 0:00:05]} 14. h4 {[%emt 0:00:32]} e5 {[%emt 0:00:04]} 15. dxe5 {[%emt 0:00:01]} fxe5 {[%emt 0:00:02]} 16. h5 {[%emt 0:00:01]} Qb6 {[%emt 0:00:27]} 17. hxg6 {[%emt 0:00:20]} hxg6 {[%emt 0:00:02]} 18. Rab1 {[%emt 0:00:01]} Rad8 {[%emt 0:00:15]} 19. Qg4 {[%emt 0:00:02]} g5 {[%emt 0:00:09]} 20. Rfe1 {[%emt 0:00:07]} Qa6 {[%emt 0:00:12]} 21. Nc5 {[%emt 0:00:05]} Qxa2 {[%emt 0:00:19]} 22. Na4 {[%emt 0:00:30]} d4 {[%emt 0:00:08]} 23. Nc5 {[%emt 0:00:15]} dxc3 {[%emt 0:00:08]} 24. Nde4 {[%emt 0:00:04]} c2 {[%emt 0:00:08]} 25. Rbc1 {[%emt 0:00:04]} Nd4 {[%emt 0:00:02]} 26. Nxg5 {[%emt 0:00:13]} Nxg5 {[%emt 0:00:07]} 27. Qxg5 {[%emt 0:00:00]} Qc4 {[%emt 0:00:03]} 28. Bxe5 {[%emt 0:00:07]} Qf7 {[%emt 0:00:11]} 29. Bxd4 {[%emt 0:00:19]} Rxe1+ {[%emt 0:00:06]} 30. Rxe1 {[%emt 0:00:02]} Rxd4 {[%emt 0:00:02]} 31. Nb3 {[%emt 0:00:09]} Rc4 {[%emt 0:00:08]} 32. Qd8+ {[%emt 0:00:05]} Kh7 {[%emt 0:00:04]} 33. Qd3+ {[%emt 0:00:02]} Kg8 {[%emt 0:00:03]} 34. Nc1 {[%emt 0:00:06]} Rc8 {[%emt 0:00:03]} 35. Re2 {[%emt 0:00:04]} Re8 {[%emt 0:00:04]} 36. Rxe8+ {[%emt 0:00:05]} Qxe8 {[%emt 0:00:01]} 37. Qxc2 {[%emt 0:00:00]} Qe1+ {[%emt 0:00:03]} 38. Kh2 {[%emt 0:00:01]} Qe5+ {[%emt 0:00:02]} 39. g3 {[%emt 0:00:03]} Qxb2 {[%emt 0:00:02]} 40. Qc8+ {[%emt 0:00:03]} Kh7 {[%emt 0:00:04]} 41. Qf5+ {[%emt 0:00:01]} Kg8 {[%emt 0:00:02]} 42. Qe6+ {[%emt 0:00:01]} Kf8 {[%emt 0:00:02]} 43. Qc8+ {[%emt 0:00:05]} Kf7 {[%emt 0:00:04]} 44. Qd7+ {[%emt 0:00:01]} Kf6 {[%emt 0:00:05]} 45. Qd6+ {[%emt 0:00:03]} Kf7 {[%emt 0:00:04]} 46. Qd7+ {[%emt 0:00:01]} Kg8 {[%emt 0:00:01]} 47. Qe8+ {[%emt 0:00:02]} Kh7 {[%emt 0:00:03]} 48. Qh5+ {[%emt 0:00:02]} Bh6 {[%emt 0:00:01]} 49. Qf5+ {[%emt 0:00:02]} Kg7 {[%emt 0:00:03]} 50. Qd7+ {[%emt 0:00:02]} Kg6 {[%emt 0:00:01]} 51. Qe6+ {[%emt 0:00:01]} Qf6 {[%emt 0:00:04]} 52. Qg4+ {[%emt 0:00:01]} Kf7 {[%emt 0:00:06]} 53. Qd7+ {[%emt 0:00:03]} Qe7 {[%emt 0:00:01]} 54. Qf5+ {[%emt 0:00:02]} Kg7 {[%emt 0:00:02]} 55. Qg4+ {[%emt 0:00:02]} Kh8 {[%emt 0:00:04]} 56. Qc8+ {[%emt 0:00:03]} Kh7 {[%emt 0:00:04]} 57. Qf5+ {[%emt 0:00:02]} Kg8 {[%emt 0:00:02]} 58. Qc8+ {[%emt 0:00:03]} Bf8 {[%emt 0:00:02]} 59. Qg4+ {[%emt 0:00:01]} Qg7 {[%emt 0:00:02]} 60. Qe6+ {[%emt 0:00:01]} Kh8 {[%emt 0:00:01]} 61. Nd3 {[%emt 0:00:03]} Qh6+ {[%emt 0:00:02]} 62. Qxh6+ {[%emt 0:00:01]} Bxh6 {[%emt 0:00:02]} 63. g4 {[%emt 0:00:02]} a5 {[%emt 0:00:04]} 64. f4 {[%emt 0:00:04]} Bf8 {[%emt 0:00:02]} 65. Kg2 {[%emt 0:00:02]} a4 {[%emt 0:00:01]} 66. Nc1 {[%emt 0:00:03]} Ba3 {[%emt 0:00:06]} 67. Na2 {[%emt 0:00:02]} b5 {[%emt 0:00:05]} 68. Kf3 {[%emt 0:00:01]} b4 {[%emt 0:00:02]} 69. Ke3 {[%emt 0:00:02]} b3 {[%emt 0:00:09]} 70. Nc3 {[%emt 0:00:02]} Bc1+ {[%emt 0:00:01]} 71. Kd3 {[%emt 0:00:01]} a3 {[%emt 0:00:02]} 0-1

[Event "Queens Festival Europe 2022"]
[Site "Tornelo"]
[Date "2022.06.19"]
[Round "8.4"]
[White "Bordin, Silvia"]
[Black "Gjergji, Rozana"]
[Result "1-0"]
[ECO "C45"]
[WhiteElo "1991"]
[BlackElo "1920"]
[Annotator "NA RC"]
[PlyCount "81"]
[EventDate "2022.06.19"]
[EventType "swiss"]
[EventCountry "NET"]
[SourceTitle "playchess.com"]
[Source "ChessBase"]
[SourceQuality "1"]
[TimeControl "180+2"]

1. e4 {[%emt 0:00:02]} e5 {[%emt 0:00:06]} 2. Nf3 {[%emt 0:00:02]} Nc6 {[%emt 0:00:05]} 3. d4 {[%emt 0:00:01]} exd4 {[%emt 0:00:05]} 4. Nxd4 {[%emt 0:00:00]} Bc5 {[%emt 0:00:03]} 5. Nb3 {[%emt 0:00:02]} Bb6 {[%emt 0:00:02]} 6. Nc3 {[%emt 0:00:01]} Nf6 {[%emt 0:00:04]} 7. Qe2 {[%emt 0:00:01]} O-O {[%emt 0:00:02]} 8. Be3 {[%emt 0:00:02]} Re8 {[%emt 0:00:04]} 9. f3 {[%emt 0:00:08]} Bxe3 {[%emt 0:00:10]} 10. Qxe3 {[%emt 0:00:02]} d5 {[%emt 0:00:05]} 11. O-O-O {[%emt 0:00:03]} Be6 {[%emt 0:00:06]} 12. Qf2 {[%emt 0:00:05]} Qd6 {[%emt 0:00:13]} 13. f4 {[%emt 0:00:27]} Ng4 {[%emt 0:00:10]} 14. Qg3 {[%emt 0:00:08]} d4 {[%emt 0:00:03]} 15. Be2 {[%emt 0:00:27]} Ne3 {[%emt 0:00:10]} 16. Rd3 {[%emt 0:00:01]} Rad8 {[%emt 0:00:08]} 17. Nxd4 {[%emt 0:00:11]} Nxd4 {[%emt 0:00:05]} 18. Qxe3 {[%emt 0:00:03]} Nxe2+ {[%emt 0:00:04]} 19. Nxe2 {[%emt 0:00:05]} Qb4 {[%emt 0:00:04]} 20. Nc3 {[%emt 0:00:20]} Bc4 {[%emt 0:00:05]} 21. Rxd8 {[%emt 0:00:04]} Rxd8 {[%emt 0:00:03]} 22. g4 {[%emt 0:00:10]} a5 {[%emt 0:00:09]} 23. a3 {[%emt 0:00:03]} Qe7 {[%emt 0:00:06]} 24. g5 {[%emt 0:00:05]} b5 {[%emt 0:00:03]} 25. f5 {[%emt 0:00:06]} b4 {[%emt 0:00:06]} 26. axb4 {[%emt 0:00:11]} axb4 {[%emt 0:00:03]} 27. Nb1 {[%emt 0:00:03]} Re8 {[%emt 0:00:13]} 28. Re1 {[%emt 0:00:08]} Bd5 {[%emt 0:00:07]} 29. Nd2 {[%emt 0:00:03]} Bc6 {[%emt 0:00:02]} 30. f6 {[%emt 0:00:03]} Qe5 {[%emt 0:00:05]} 31. fxg7 {[%emt 0:00:11]} Qxg7 {[%emt 0:00:05]} 32. h4 {[%emt 0:00:04]} Ra8 {[%emt 0:00:15]} 33. Qc5 {[%emt 0:00:10]} Ra1+ {[%emt 0:00:05]} 34. Nb1 {[%emt 0:00:01]} Ba4 {[%emt 0:00:24]} 35. Qxb4 {[%emt 0:00:05]} Qe5 {[%emt 0:00:05]} 36. Qd2 {[%emt 0:00:10]} Bxc2 {[%emt 0:00:11]} 37. Qxc2 {[%emt 0:00:05]} Qf4+ {[%emt 0:00:03]} 38. Qd2 {[%emt 0:00:01]} Rxb1+ {[%emt 0:00:09]} 39. Kc2 {[%emt 0:00:12]} Qxd2+ {[%emt 0:00:07]} 40. Kxd2 {[%emt 0:00:02]} Rxb2+ {[%emt 0:00:03]} 41. Kc3 {[%emt 0:00:02]} 1-0

[Event "Queens Festival Europe 2022"]
[Site "Tornelo"]
[Date "2022.06.19"]
[Round "8.5"]
[White "Deak-Sala, Emilia"]
[Black "Stastna, Martina"]
[Result "1-0"]
[ECO "C54"]
[WhiteElo "1883"]
[BlackElo "1912"]
[Annotator "NA RC"]
[PlyCount "47"]
[EventDate "2022.06.19"]
[EventType "swiss"]
[EventCountry "NET"]
[SourceTitle "playchess.com"]
[Source "ChessBase"]
[SourceQuality "1"]
[TimeControl "180+2"]

1. e4 {[%emt 0:00:02]} e5 {[%emt 0:00:04]} 2. Nf3 {[%emt 0:00:11]} Nc6 {[%emt 0:00:03]} 3. Bc4 {[%emt 0:00:03]} Nf6 {[%emt 0:00:05]} 4. d3 {[%emt 0:00:02]} Bc5 {[%emt 0:00:06]} 5. c3 {[%emt 0:00:02]} d6 {[%emt 0:00:43]} 6. Bb3 {[%emt 0:00:03]} Be6 {[%emt 0:00:07]} 7. Bc2 {[%emt 0:00:02]} O-O {[%emt 0:00:09]} 8. Nbd2 {[%emt 0:00:01]} d5 {[%emt 0:00:02]} 9. Qe2 {[%emt 0:00:03]} Bf5 {[%emt 0:00:07]} 10. exf5 {[%emt 0:00:07]} e4 {[%emt 0:00:02]} 11. dxe4 {[%emt 0:00:03]} dxe4 {[%emt 0:00:04]} 12. Nxe4 {[%emt 0:00:04]} Nxe4 {[%emt 0:00:09]} 13. Bxe4 {[%emt 0:00:02]} Re8 {[%emt 0:00:23]} 14. O-O {[%emt 0:00:03]} Qe7 {[%emt 0:00:07]} 15. Re1 {[%emt 0:00:07]} Rad8 {[%emt 0:00:46]} 16. Bg5 {[%emt 0:00:34]} f6 {[%emt 0:00:04]} 17. Qc4+ {[%emt 0:00:08]} Kh8 {[%emt 0:00:05]} 18. Bxc6 {[%emt 0:00:09]} Qd6 {[%emt 0:00:08]} 19. Rxe8+ {[%emt 0:00:20]} Rxe8 {[%emt 0:00:03]} 20. Bxe8 {[%emt 0:00:06]} fxg5 {[%emt 0:00:02]} 21. Nxg5 {[%emt 0:00:06]} Qf4 {[%emt 0:00:08]} 22. Nf7+ {[%emt 0:00:03]} Kg8 {[%emt 0:00:02]} 23. Nh6+ {[%emt 0:00:03]} Kf8 {[%emt 0:00:02]} 24. Qf7# {[%emt 0:00:02]} 1-0